fUST/lending_fUST_20250817
["ID","MTS","AMOUNT","RATE_DAILY","PERIOD"]
[379896425,1755433849217,-480.0,0.00019726,2]
[379896427,1755433849226,-480.0,0.00019726,2]
[379896429,1755433849235,-480.0,0.00019726,2]
[379896431,1755433849244,-480.0,0.00019726,2]
[379896432,1755433849253,-809.74,0.00019726,2]
[379896435,1755433849263,-480.0,0.00019726,2]
[379896437,1755433849272,-480.0,0.00019726,2]
[379896439,1755433849282,-501.65,0.00019726,2]
[379896441,1755433849291,-480.0,0.00019726,2]
[379896443,1755433849300,-480.0,0.00019726,2]
[379896444,1755433849309,-480.0,0.00019726,2]
[379896446,1755433849318,-480.0,0.00019726,2]
[379896448,1755433849327,-480.0,0.00019726,2]
[379896451,1755433849337,-461.48136887,0.00019784,2]
[379896452,1755433849346,-461.63860075,0.00019784,2]
[379896454,1755433849355,-480.0,0.00019784,2]
[379896457,1755433849364,-544.14746685,0.00019784,2]
[379896458,1755433849374,-200.0,0.00019789,20]
[379896460,1755433849384,-200.0,0.00019789,20]
[379896463,1755433849393,-200.0,0.00019789,20]
[379896465,1755433849402,-200.0,0.00019789,20]
[379896466,1755433849412,-200.0,0.00019789,20]
[379896468,1755433849422,-200.0,0.00019789,20]
[379896470,1755433849431,-200.0,0.00019789,20]
[379896472,1755433849440,-200.0,0.00019789,20]
[379896474,1755433849449,-200.0,0.00019789,20]
[379896476,1755433849459,-200.0,0.00019789,20]
[379896477,1755433849469,-600.0,0.00019794,20]
[379896478,1755433849478,-480.0,0.0001985,2]
[379896480,1755433849487,-168.95489268,0.0001985,2]
[379896481,1755433849496,-480.0,0.0001985,2]
[379896482,1755433849507,-480.0,0.0001985,2]
[379896483,1755433849516,-516.58110386,0.0001985,2]
[379896484,1755433849525,-480.0,0.0001985,2]
[379896485,1755433849534,-480.0,0.0001985,2]
[379896486,1755433849543,-480.0,0.0001985,2]
[379896487,1755433849552,-480.0,0.0001985,2]
[379896488,1755433849562,-480.0,0.0001985,2]
[379896490,1755433849571,-460.0,0.0001985,2]
[379896492,1755433849580,-480.0,0.0001985,2]
[379896494,1755433849589,-480.0,0.0001985,2]
[379896496,1755433849598,-460.0,0.0001985,2]
[379896498,1755433849607,-480.0,0.0001985,2]
[379896499,1755433849617,-405.0774063,0.0001985,2]
[379896500,1755433849626,-480.0,0.0001985,2]
[379896501,1755433849635,-480.0,0.0001985,2]
[379896502,1755433849645,-480.0,0.0001985,2]
[379896503,1755433849655,-480.0,0.0001985,2]
[379896504,1755433849664,-480.0,0.0001985,2]
[379896505,1755433849673,-480.0,0.0001985,2]
[379896506,1755433849682,-480.0,0.0001985,2]
[379896507,1755433849692,-480.0,0.0001985,2]
[379896508,1755433849701,-480.0,0.0001985,2]
[379896509,1755433849710,-480.0,0.0001985,2]
[379896510,1755433849719,-480.0,0.0001985,2]
[379896511,1755433849728,-480.0,0.0001985,2]
[379896513,1755433849737,-480.0,0.0001985,2]
[379896515,1755433849746,-480.0,0.0001985,2]
[379896516,1755433849755,-480.0,0.0001985,2]
[379896517,1755433849764,-480.0,0.0001985,2]
[379896518,1755433849773,-480.0,0.0001985,2]
[379896519,1755433849787,-480.0,0.0001985,2]
[379896520,1755433849796,-480.0,0.0001985,2]
[379896521,1755433849805,-480.0,0.0001985,2]
[379896522,1755433849815,-228.65415,0.00019863,2]
[379896523,1755433849824,-151.0,0.000199,2]
[379896524,1755433849833,-4378.96115509,0.000199,2]
[379896525,1755433849843,-1002.70342106,0.00019921,2]
[379896526,1755433849852,-1000.0,0.00019921,2]
[379896527,1755433849862,-1000.0,0.00019921,2]
[379896528,1755433849872,-793.31030359,0.00019921,2]
[379896529,1755433849881,-1001.0519514,0.00019921,2]
[379896530,1755433849890,-604.71280234,0.00019921,2]
[379896531,1755433849900,-1000.0,0.00019921,2]
[379896532,1755433849909,-674.05006771,0.00019921,2]
[379896533,1755433849918,-260.50182072,0.00019921,2]
[379896534,1755433849928,-921.66,0.0001995,2]
[379896535,1755433849937,-480.0,0.0001995,2]
[379896536,1755433849946,-480.0,0.0001995,2]
[379896537,1755433849956,-480.0,0.0001995,2]
[379896538,1755433849965,-480.0,0.0001995,2]
[379896539,1755433849974,-870.82,0.0001995,2]
[379896540,1755433849983,-480.0,0.0001995,2]
[379896541,1755433849992,-480.0,0.0001995,2]
[379896542,1755433850002,-440.0,0.0001995,2]
[379896543,1755433850011,-460.0,0.0001995,2]
[379896544,1755433850126,-480.0,0.0001995,2]
[379896545,1755433850137,-500.43,0.0001995,2]
[379896546,1755433850147,-684.45,0.0001995,2]
[379896547,1755433850156,-480.0,0.0001995,2]
[379896548,1755433850165,-460.0,0.0001995,2]
[379896549,1755433850174,-1216.63,0.0001995,2]
[379896550,1755433850187,-488.18,0.0001995,2]
[379896551,1755433850196,-723.08,0.0001995,2]
[379896552,1755433850205,-480.0,0.0001995,2]
[379896553,1755433850214,-917.01,0.0001995,2]
[379896554,1755433850223,-525.89,0.0001995,2]
[379896555,1755433850233,-480.0,0.0001995,2]
[379896556,1755433850242,-739.15,0.0001995,2]
[379896557,1755433850251,-480.0,0.0001995,2]
[379896558,1755433850260,-480.0,0.0001995,2]
[379896559,1755433850270,-480.0,0.0001995,2]
[379896560,1755433850279,-591.93975049,0.00019951,2]
[379896561,1755433850288,-480.0,0.00019951,2]
[379896562,1755433850297,-542.73,0.00019954,2]
[379896563,1755433850306,-8352.77,0.00019954,2]
[379896564,1755433850315,-480.0,0.00019954,2]
[379896565,1755433850324,-1550.97,0.00019954,2]
[379896566,1755433850333,-480.0,0.00019954,2]
[379896567,1755433850342,-998.84,0.00019954,2]
[379896568,1755433850352,-807.42,0.00019954,2]
[379896569,1755433850360,-5550.09,0.00019954,2]
[379896570,1755433850369,-300.80260306,0.00019954,2]
[379896571,1755433850379,-161.0584732,0.00019954,2]
[379896572,1755433850388,-480.0,0.00019955,2]
[379896573,1755433850397,-480.0,0.00019955,2]
[379896574,1755433850407,-528.69158621,0.00019955,2]
[379896575,1755433850416,-480.0,0.00019955,2]
[379896576,1755433850425,-480.0,0.00019955,2]
[379896577,1755433850435,-464.7755459,0.00019955,2]
[379896578,1755433850443,-446.61964966,0.00019955,2]
[379896579,1755433850452,-480.0,0.00019955,2]
[379896580,1755433850462,-480.0,0.00019955,2]
[379896581,1755433850471,-315.23990931,0.00019955,2]
[379896582,1755433850491,-480.0,0.00019955,2]
[379896583,1755433850501,-440.0,0.00019955,2]
[379896584,1755433850510,-427.61506618,0.00019955,2]
[379896585,1755433850520,-480.0,0.00019955,2]
[379896586,1755433850529,-305.54314141,0.00019955,2]
[379896587,1755433850538,-443.37954409,0.00019955,2]
[379896588,1755433850547,-480.0,0.00019955,2]
[379896589,1755433850556,-480.0,0.00019955,2]
[379896590,1755433850566,-1014.82133338,0.00019955,2]
[379896591,1755433850575,-480.0,0.00019955,2]
[379896592,1755433850585,-480.0,0.00019955,2]
[379896593,1755433850594,-460.0,0.00019955,2]
[379896594,1755433850603,-480.0,0.00019955,2]
[379896595,1755433850612,-460.0,0.00019955,2]
[379896596,1755433850622,-480.0,0.00019955,2]
[379896597,1755433850631,-480.0,0.00019955,2]
[379896598,1755433850640,-480.0,0.00019955,2]
[379896599,1755433850650,-480.0,0.00019955,2]
[379896600,1755433850659,-480.0,0.00019955,2]
[379896601,1755433850668,-480.0,0.00019955,2]
[379896602,1755433850677,-151.0,0.00019955,2]
[379896603,1755433850686,-480.0,0.00019955,2]
[379896604,1755433850696,-480.0,0.00019955,2]
[379896605,1755433850705,-151.0,0.00019955,2]
[379896606,1755433850714,-480.0,0.00019955,2]
[379896607,1755433850723,-480.0,0.00019955,2]
[379896608,1755433850733,-480.0,0.00019955,2]
[379896610,1755433850742,-480.0,0.00019955,2]
[379896611,1755433850751,-480.0,0.00019955,2]
[379896613,1755433850760,-151.318924,0.00019955,2]
[379896615,1755433850770,-151.0,0.00019955,2]
[379896617,1755433850784,-151.0,0.00019955,2]
[379896619,1755433850793,-480.0,0.00019955,2]
[379896621,1755433850809,-151.0,0.00019955,2]
[379896623,1755433850822,-480.0,0.00019955,2]
[379896625,1755433850833,-283.45209881,0.00019955,2]
[379896627,1755433850842,-480.0,0.00019955,2]
[379896629,1755433850852,-151.0,0.00019955,2]
[379896631,1755433850861,-480.0,0.00019955,2]
[379896633,1755433850870,-480.0,0.00019955,2]
[379896635,1755433850880,-340.0,0.00019955,2]
[379896637,1755433850889,-480.0,0.00019955,2]
[379896639,1755433850898,-480.0,0.00019955,2]
[379896641,1755433850908,-480.0,0.00019955,2]
[379896643,1755433850917,-480.0,0.00019955,2]
[379896645,1755433850926,-480.0,0.00019955,2]
[379896647,1755433850935,-480.0,0.00019955,2]
[379896649,1755433850944,-480.0,0.00019955,2]
[379896651,1755433850953,-151.0,0.00019955,2]
[379896653,1755433850963,-480.0,0.00019955,2]
[379896655,1755433850971,-480.30436921,0.00019955,2]
[379896657,1755433850981,-513.98264646,0.00019955,2]
[379896659,1755433850990,-463.81385654,0.00019955,2]
[379896661,1755433850999,-480.0,0.00019955,2]
[379896663,1755433851009,-480.0,0.00019955,2]
[379896665,1755433851018,-480.0,0.00019955,2]
[379896667,1755433851027,-480.0,0.00019955,2]
[379896669,1755433851036,-1093.96,0.00019955,2]
[379896671,1755433851045,-480.0,0.00019955,2]
[379896673,1755433851055,-480.0,0.00019955,2]
[379896675,1755433851064,-480.0,0.00019955,2]
[379896677,1755433851074,-480.0,0.00019955,2]
[379896679,1755433851084,-480.0,0.00019955,2]
[379896681,1755433851092,-480.0,0.00019955,2]
[379896683,1755433851102,-480.0,0.00019955,2]
[379896685,1755433851111,-480.0,0.00019955,2]
[379896687,1755433851121,-325.433859,0.00019955,2]
[379896690,1755433851130,-325.433859,0.00019955,2]
[379896692,1755433851139,-480.0,0.00019955,2]
[379896693,1755433851149,-480.0,0.00019955,2]
[379896696,1755433851159,-480.0,0.00019955,2]
[379896697,1755433851168,-480.0,0.00019955,2]
[379896699,1755433851179,-480.0,0.00019955,2]
[379896701,1755433851188,-804.19,0.00019955,2]
[379896703,1755433851197,-480.0,0.00019955,2]
[379896705,1755433851207,-743.01,0.00019955,2]
[379896707,1755433851216,-480.0,0.00019955,2]
[379896709,1755433851225,-480.0,0.00019955,2]
[379896712,1755433851235,-656.5,0.00019955,2]
[379896714,1755433851246,-1899.54,0.00019957,2]
[379896716,1755433851256,-480.0,0.00019957,2]
[379896718,1755433851265,-2446.43,0.00019957,2]
[379896719,1755433851276,-480.0,0.00019957,2]
[379896722,1755433851286,-480.0,0.00019957,2]
[379896724,1755433851296,-500.0,0.00019966,2]
[379896726,1755433851305,-1500.0,0.00019968,2]
[379896728,1755433851314,-1008.91441769,0.00019968,2]
[379896730,1755433851323,-1500.0,0.00019968,2]
[379896732,1755433851332,-500.0,0.00019968,2]
[379896734,1755433851341,-500.0,0.00019979,2]
[379896736,1755433851350,-500.0,0.00019979,2]
[379896738,1755433851359,-500.0,0.00019979,2]
[379896740,1755433851368,-500.0,0.00019979,2]
[379896742,1755433851376,-500.0,0.00019979,2]
[379896744,1755433851386,-151.0,0.0002,4]
[379896746,1755433851396,-1013.81896318,0.0002,10]
[379896748,1755433851405,-480.0,0.0002,2]
[379896750,1755433851414,-701.7,0.0002,2]
[379896752,1755433851423,-1183.64,0.0002,2]
[379896754,1755433851435,-553.03,0.0002,2]
[379896756,1755433851445,-152.384671,0.0002,2]
[379896758,1755433851454,-154.489964,0.0002,2]
[379896760,1755433851464,-480.0,0.0002,2]
[379896762,1755433851473,-480.0,0.0002,2]
[379896764,1755433851482,-151.0,0.0002,2]
[379896766,1755433851491,-151.0,0.0002,2]
[379896768,1755433851500,-460.0,0.0002,2]
[379896770,1755433851509,-480.0,0.0002,2]
[379896772,1755433851518,-1129.84,0.0002,2]
[379896774,1755433851528,-800.33,0.0002,2]
[379896776,1755433851537,-480.0,0.0002,2]
[379896778,1755433851546,-182.746088,0.0002,2]
[379896780,1755433851555,-480.0,0.0002,2]
[379896782,1755433851564,-153.022001,0.0002,2]
[379896784,1755433851573,-182.746088,0.0002,2]
[379896786,1755433851582,-480.0,0.0002,2]
[379896788,1755433851591,-485.31,0.0002,2]
[379896790,1755433851600,-480.0,0.0002,2]
[379896792,1755433851609,-699.5,0.0002,2]
[379896794,1755433851618,-480.0,0.0002,2]
[379896796,1755433851630,-1384.57,0.0002,2]
[379896797,1755433851639,-480.0,0.0002,2]
[379896800,1755433851649,-1807.41,0.0002,2]
[379896801,1755433851657,-499.56,0.0002,2]
[379896804,1755433851667,-838.43,0.0002,2]
[379896806,1755433851676,-480.0,0.0002,2]
[379896808,1755433851685,-480.0,0.0002,2]
[379896809,1755433851694,-2809.17,0.0002,2]
[379896811,1755433851703,-480.0,0.0002,2]
[379896813,1755433851713,-480.0,0.0002,2]
[379896814,1755433851721,-1268.75,0.0002,2]
[379896816,1755433851730,-480.0,0.0002,2]
[379896818,1755433851739,-480.0,0.0002,2]
[379896820,1755433851748,-825.07,0.0002,2]
[379896822,1755433851758,-151.0,0.0002,2]
[379896824,1755433851767,-480.0,0.0002,2]
[379896826,1755433851778,-2080.32,0.0002,2]
[379896828,1755433851789,-480.0,0.0002,2]
[379896830,1755433851800,-480.0,0.0002,2]
[379896832,1755433851809,-3523.94,0.0002,2]
[379896834,1755433851821,-283.97858,0.0002,2]
[379896836,1755433851830,-480.0,0.0002,2]
[379896838,1755433851840,-7049.46,0.0002,2]
[379896840,1755433851849,-1429.6,0.0002,2]
[379896842,1755433851858,-561.34,0.0002,2]
[379896844,1755433851868,-898.35,0.0002,2]
[379896846,1755433851877,-545.78,0.0002,2]
[379896848,1755433851886,-623.64,0.0002,2]
[379896850,1755433851896,-151.0,0.0002,2]
[379896852,1755433851905,-500.0,0.0002,2]
[379896854,1755433851916,-480.0,0.0002,2]
[379896856,1755433851925,-761.94,0.0002,2]
[379896858,1755433851934,-480.0,0.0002,2]
[379896860,1755433851944,-480.0,0.0002,2]
[379896862,1755433851953,-480.0,0.0002,2]
[379896864,1755433851962,-809.74,0.0002,2]
[379896866,1755433851972,-480.0,0.0002,2]
[379896868,1755433851981,-480.0,0.0002,2]
[379896870,1755433851990,-4000.0,0.0002,4]
[379896872,1755433852001,-501.65,0.0002,2]
[379896874,1755433852010,-480.0,0.0002,2]
[379896876,1755433852019,-480.0,0.0002,2]
[379896878,1755433852028,-480.0,0.0002,2]
[379896880,1755433852037,-480.0,0.0002,2]
[379896882,1755433852047,-151.125281,0.0002,2]
[379896884,1755433852056,-1000.0,0.00020021,2]
[379896886,1755433852065,-1000.0,0.00020021,2]
[379896888,1755433852073,-1000.0,0.00020021,2]
[379896890,1755433852082,-1000.0,0.00020021,2]
[379896892,1755433852091,-1000.0,0.00020021,2]
[379896894,1755433852101,-660.63757412,0.00020021,2]
[379896896,1755433852110,-1001.28714574,0.00020021,2]
[379896898,1755433852119,-1000.0,0.00020021,2]
[379896900,1755433852129,-1000.0,0.00020021,2]
[379896902,1755433852138,-1000.0,0.00020021,2]
[379896904,1755433852147,-1000.0,0.00020021,2]
[379896906,1755433852156,-1000.0,0.00020021,2]
[379896908,1755433852166,-1000.0,0.00020021,2]
[379896910,1755433852175,-1000.0,0.00020021,2]
[379896912,1755433852184,-1000.0,0.00020021,2]
[379896914,1755433852193,-1000.0,0.00020021,2]
[379896916,1755433852203,-754.1170082,0.00020021,2]
[379896918,1755433852212,-1000.0,0.00020021,2]
[379896920,1755433852221,-1000.0,0.00020021,2]
[379896922,1755433852230,-464.82717658,0.00020058,2]
[379896924,1755433852240,-151.0,0.00020058,2]
[379896926,1755433852249,-151.0,0.00020058,2]
[379896928,1755433852259,-151.0,0.00020058,2]
[379896930,1755433852268,-151.0,0.00020058,2]
[379896932,1755433852277,-440.139619,0.00020058,2]
[379896934,1755433852286,-440.139619,0.00020058,2]
[379896947,1755433852393,-151.0,0.00020058,2]
[379896950,1755433852403,-151.0,0.00020058,2]
[379896952,1755433852412,-245.67851,0.00020058,2]
[379896954,1755433852422,-245.67851,0.00020058,2]
[379896956,1755433852431,-151.0,0.00020058,2]
[379896958,1755433852440,-151.0,0.00020058,2]
[379896959,1755433852449,-843.71309931,0.00020066,2]
[379896961,1755433852458,-160.0,0.00020066,2]
[379896963,1755433852467,-528.48506731,0.00020066,2]
[379896965,1755433852476,-215.71995163,0.00020066,2]
[379896967,1755433852485,-375.77065697,0.00020066,2]
[379896970,1755433852495,-417.15472785,0.00020066,2]
[379896972,1755433852506,-232.1512529,0.00020066,2]
[379896973,1755433852516,-160.0,0.00020066,2]
[379896975,1755433852526,-160.0,0.00020066,2]
[379896978,1755433852536,-160.0,0.00020066,2]
[379896980,1755433852547,-216.83204348,0.00020067,2]
[379896981,1755433852557,-12682.46447135,0.00020067,2]
[379896984,1755433852567,-500.0,0.00020082,2]
[379896986,1755433852577,-420.5,0.00020109,2]
[379896988,1755433852587,-480.0,0.00020124,2]
[379896990,1755433852596,-480.0,0.00020124,2]
[379896991,1755433852605,-480.0,0.00020124,2]
[379896994,1755433852615,-480.0,0.00020124,2]
[379896995,1755433852624,-480.0,0.00020124,2]
[379896997,1755433852633,-480.0,0.00020124,2]
[379896999,1755433852643,-480.0,0.00020124,2]
[379897001,1755433852652,-254.33868751,0.00020124,2]
[379897003,1755433852661,-480.0,0.00020124,2]
[379897005,1755433852670,-480.0,0.00020124,2]
[379897007,1755433852679,-480.0,0.00020124,2]
[379897009,1755433852688,-480.0,0.00020124,2]
[379897012,1755433852697,-480.0,0.00020124,2]
[379897013,1755433852708,-480.0,0.00020124,2]
[379897016,1755433852718,-460.0,0.00020124,2]
[379897018,1755433852728,-460.0,0.00020124,2]
[379897020,1755433852738,-480.0,0.00020124,2]
[379897022,1755433852747,-5002.95223816,0.0002014,2]
[379897024,1755433852756,-26825.19813826,0.00020173,2]
[379897026,1755433852765,-683.126691,0.00020187,2]
[379897028,1755433852774,-151.0,0.00020197,2]
[379897029,1755433852787,-152.530069,0.00020197,2]
[379897032,1755433852797,-151.0,0.000202,4]
[379897034,1755433852806,-380.84,0.0002022,2]
[379897036,1755433852816,-1000.0,0.00020221,2]
[379897038,1755433852826,-1000.0,0.00020221,2]
[379897040,1755433852835,-921.66,0.00020224,2]
[379897042,1755433852844,-480.0,0.00020224,2]
[379897044,1755433852854,-480.0,0.00020224,2]
[379897046,1755433852863,-480.0,0.00020224,2]
[379897048,1755433852873,-480.0,0.00020224,2]
[379897050,1755433852883,-870.82,0.00020224,2]
[379897051,1755433852892,-480.0,0.00020224,2]
[379897052,1755433852902,-480.0,0.00020224,2]
[379897053,1755433852911,-480.0,0.00020224,2]
[379897054,1755433852920,-500.43,0.00020224,2]
[379897055,1755433852929,-684.45,0.00020224,2]
[379897056,1755433852938,-480.0,0.00020224,2]
[379897057,1755433852947,-1216.63,0.00020224,2]
[379897058,1755433852957,-488.18,0.00020224,2]
[379897059,1755433852966,-723.08,0.00020224,2]
[379897060,1755433852975,-480.0,0.00020224,2]
[379897061,1755433852984,-917.01,0.00020224,2]
[379897062,1755433852993,-525.89,0.00020224,2]
[379897063,1755433853003,-480.0,0.00020224,2]
[379897064,1755433853012,-739.15,0.00020224,2]
[379897065,1755433853022,-480.0,0.00020224,2]
[379897066,1755433853031,-480.0,0.00020224,2]
[379897067,1755433853040,-460.0,0.00020224,2]
[379897068,1755433853050,-151.0,0.00020225,2]
[379897069,1755433853059,-151.0,0.00020225,2]
[379897070,1755433853068,-151.0,0.00020225,2]
[379897071,1755433853077,-151.0,0.00020225,2]
[379897072,1755433853086,-325.433859,0.00020225,2]
[379897073,1755433853095,-325.433859,0.00020225,2]
[379897075,1755433853104,-480.0,0.00020225,2]
[379897076,1755433853113,-151.0,0.00020227,2]
[379897077,1755433853122,-151.0,0.00020227,2]
[379897079,1755433853136,-209.057067,0.00020227,2]
[379897081,1755433853146,-209.057067,0.00020227,2]
[379897083,1755433853155,-151.0,0.00020227,2]
[379897085,1755433853165,-542.73,0.00020228,2]
[379897087,1755433853174,-8352.77,0.00020228,2]
[379897089,1755433853183,-480.0,0.00020228,2]
[379897090,1755433853192,-1550.97,0.00020228,2]
[379897093,1755433853201,-480.0,0.00020228,2]
[379897094,1755433853212,-998.84,0.00020228,2]
[379897097,1755433853221,-807.42,0.00020228,2]
[379897098,1755433853231,-5550.09,0.00020228,2]
[379897101,1755433853240,-480.0,0.00020229,2]
[379897102,1755433853249,-480.0,0.00020229,2]
[379897104,1755433853258,-480.0,0.00020229,2]
[379897106,1755433853267,-480.0,0.00020229,2]
[379897108,1755433853276,-480.0,0.00020229,2]
[379897110,1755433853286,-480.0,0.00020229,2]
[379897112,1755433853295,-480.0,0.00020229,2]
[379897114,1755433853304,-480.0,0.00020229,2]
[379897116,1755433853314,-151.0,0.00020229,2]
[379897118,1755433853323,-480.0,0.00020229,2]
[379897120,1755433853332,-151.497329,0.00020229,2]
[379897122,1755433853342,-464.95425649,0.00020229,2]
[379897124,1755433853351,-166.882051,0.00020229,2]
[379897126,1755433853360,-438.42169,0.00020229,2]
[379897128,1755433853369,-438.42169,0.00020229,2]
[379897130,1755433853378,-480.0,0.00020229,2]
[379897132,1755433853387,-480.0,0.00020229,2]
[379897134,1755433853396,-480.0,0.00020229,2]
[379897136,1755433853405,-480.0,0.00020229,2]
[379897138,1755433853415,-480.0,0.00020229,2]
[379897140,1755433853424,-480.0,0.00020229,2]
[379897142,1755433853433,-480.0,0.00020229,2]
[379897144,1755433853443,-450.82653825,0.00020229,2]
[379897146,1755433853451,-227.52921601,0.00020229,2]
[379897148,1755433853461,-480.0,0.00020229,2]
[379897150,1755433853470,-480.0,0.00020229,2]
[379897152,1755433853480,-480.0,0.00020229,2]
[379897153,1755433853498,-480.0,0.00020229,2]
[379897155,1755433853536,-480.0,0.00020229,2]
[379897158,1755433853571,-308.07087061,0.00020229,2]
[379897160,1755433853581,-480.0,0.00020229,2]
[379897162,1755433853591,-480.0,0.00020229,2]
[379897164,1755433853600,-480.0,0.00020229,2]
[379897166,1755433853609,-504.48346742,0.00020229,2]
[379897168,1755433853619,-480.0,0.00020229,2]
[379897170,1755433853627,-480.0,0.00020229,2]
[379897172,1755433853636,-420.0,0.00020229,2]
[379897174,1755433853645,-480.0,0.00020229,2]
[379897176,1755433853654,-480.0,0.00020229,2]
[379897178,1755433853663,-480.0,0.00020229,2]
[379897180,1755433853673,-1093.96,0.00020229,2]
[379897182,1755433853682,-385.72079697,0.00020229,2]
[379897184,1755433853691,-480.0,0.00020229,2]
[379897186,1755433853700,-464.53280323,0.00020229,2]
[379897188,1755433853709,-480.0,0.00020229,2]
[379897190,1755433853718,-368.79835111,0.00020229,2]
[379897192,1755433853727,-464.09872347,0.00020229,2]
[379897194,1755433853736,-480.0,0.00020229,2]
[379897196,1755433853746,-480.0,0.00020229,2]
[379897198,1755433853755,-480.0,0.00020229,2]
[379897200,1755433853765,-480.0,0.00020229,2]
[379897202,1755433853774,-480.0,0.00020229,2]
[379897204,1755433853783,-480.0,0.00020229,2]
[379897206,1755433853792,-480.0,0.00020229,2]
[379897208,1755433853805,-804.19,0.00020229,2]
[379897209,1755433853814,-743.01,0.00020229,2]
[379897211,1755433853824,-480.0,0.00020229,2]
[379897213,1755433853833,-480.0,0.00020229,2]
[379897215,1755433853843,-656.5,0.00020229,2]
[379897217,1755433853852,-1899.54,0.00020231,2]
[379897219,1755433853861,-480.0,0.00020231,2]
[379897221,1755433853871,-2446.43,0.00020231,2]
[379897224,1755433853880,-480.0,0.00020231,2]
[379897225,1755433853889,-480.0,0.00020231,2]
[379897228,1755433853900,-168.0,0.00020238,2]
[379897229,1755433853909,-500.0,0.0002024,2]
[379897231,1755433853918,-1063.4,0.00020246,3]
[379897233,1755433853928,-531.7,0.00020246,3]
[379897235,1755433853937,-420.5,0.00020256,2]
[379897237,1755433853947,-1000.0,0.00020256,2]
[379897239,1755433853956,-5000.0,0.00020261,2]
[379897241,1755433853966,-237.69464828,0.00020273,2]
[379897243,1755433853976,-701.7,0.00020273,2]
[379897245,1755433853985,-1183.64,0.00020273,2]
[379897247,1755433853996,-553.03,0.00020273,2]
[379897249,1755433854005,-480.0,0.00020273,2]
[379897251,1755433854014,-480.0,0.00020273,2]
[379897253,1755433854024,-480.0,0.00020273,2]
[379897255,1755433854034,-1129.84,0.00020273,2]
[379897257,1755433854043,-800.33,0.00020273,2]
[379897259,1755433854053,-480.0,0.00020273,2]
[379897261,1755433854062,-480.0,0.00020273,2]
[379897263,1755433854071,-480.0,0.00020273,2]
[379897265,1755433854080,-485.31,0.00020273,2]
[379897266,1755433854089,-480.0,0.00020273,2]
[379897268,1755433854099,-699.5,0.00020273,2]
[379897270,1755433854108,-480.0,0.00020273,2]
[379897272,1755433854117,-1384.57,0.00020273,2]
[379897274,1755433854126,-480.0,0.00020273,2]
[379897276,1755433854136,-1807.41,0.00020273,2]
[379897278,1755433854145,-499.56,0.00020273,2]
[379897280,1755433854156,-838.43,0.00020273,2]
[379897282,1755433854165,-480.0,0.00020273,2]
[379897284,1755433854174,-2809.17,0.00020273,2]
[379897286,1755433854183,-1268.75,0.00020273,2]
[379897288,1755433854193,-480.0,0.00020273,2]